[Event "Titled Tuesday Blitz January 31 Early 2023"]
[White "Liimatainen, Jero"]
[Black "Nguyen Hong Nhung"]
[WhiteFideId "509531"]
[BlackFideId "12412201"]
[WhiteElo "1948"]
[BlackElo "2003"]
[Result "0-1"]
[Round "05"]
[TimeControl "180+2"]
[Date "2023.01.31"]
[WhiteClock "0:00:11"]
[BlackClock "0:00:07"]

1. e4 {[%clk 0:02:57]}  c5 {[%clk 0:02:57]} 2. Nf3 {[%clk 0:02:56]}  e6 {[%clk 0:02:57]} 3. g3 {[%clk 0:02:55]}  Nc6 {[%clk 0:02:56]} 4. Bg2 {[%clk 0:02:55]}  d5 {[%clk 0:02:56]} 5. exd5 {[%clk 0:02:53]}  exd5 {[%clk 0:02:56]} 6. d4 {[%clk 0:02:53]}  Nf6 {[%clk 0:02:53]} 7. O-O {[%clk 0:02:52]}  Be7 {[%clk 0:02:51]} 8. dxc5 {[%clk 0:02:50]}  Bxc5 {[%clk 0:02:50]} 9. Nc3 {[%clk 0:02:24]}  h6 {[%clk 0:02:42]} 10. a3 {[%clk 0:01:46]}  O-O {[%clk 0:02:37]} 11. b4 {[%clk 0:01:45]}  Bb6 {[%clk 0:02:28]} 12. Na4 {[%clk 0:01:24]}  Bc7 {[%clk 0:02:10]} 13. Bb2 {[%clk 0:01:24]}  Bg4 {[%clk 0:02:08]} 14. h3 {[%clk 0:01:24]}  Bh5 {[%clk 0:02:07]} 15. Nc5 {[%clk 0:01:23]}  b6 {[%clk 0:01:58]} 16. Nd3 {[%clk 0:01:23]}  Re8 {[%clk 0:01:51]} 17. Qd2 {[%clk 0:01:23]}  Ne4 {[%clk 0:01:48]} 18. Qc1 {[%clk 0:01:23]}  Qd7 {[%clk 0:01:44]} 19. Nf4 {[%clk 0:01:22]}  Bxf3 {[%clk 0:01:41]} 20. Bxf3 {[%clk 0:01:19]}  Bxf4 {[%clk 0:01:41]} 21. Qxf4 {[%clk 0:01:18]}  Rad8 {[%clk 0:01:22]} 22. Bg2 {[%clk 0:01:06]}  Qd6 {[%clk 0:01:07]} 23. Qxd6 {[%clk 0:01:04]}  Rxd6 {[%clk 0:01:07]} 24. Rad1 {[%clk 0:01:00]}  Red8 {[%clk 0:00:58]} 25. c4 {[%clk 0:00:54]}  f5 {[%clk 0:00:41]} 26. Rxd5 {[%clk 0:00:34]}  Rxd5 {[%clk 0:00:42]} 27. cxd5 {[%clk 0:00:34]}  Rxd5 {[%clk 0:00:42]} 28. Rc1 {[%clk 0:00:34]}  Nd4 {[%clk 0:00:29]} 29. Bxe4 {[%clk 0:00:27]}  fxe4 {[%clk 0:00:26]} 30. Rc8+ {[%clk 0:00:21]}  Kh7 {[%clk 0:00:26]} 31. Bxd4 {[%clk 0:00:19]}  Rxd4 {[%clk 0:00:25]} 32. Rc7 {[%clk 0:00:20]}  a5 {[%clk 0:00:24]} 33. bxa5 {[%clk 0:00:19]}  bxa5 {[%clk 0:00:25]} 34. Rc5 {[%clk 0:00:18]}  Ra4 {[%clk 0:00:25]} 35. Re5 {[%clk 0:00:19]}  Kg6 {[%clk 0:00:24]} 36. Kf1 {[%clk 0:00:15]}  Kf6 {[%clk 0:00:24]} 37. Re8 {[%clk 0:00:16]}  Kf7 {[%clk 0:00:24]} 38. Re5 {[%clk 0:00:16]}  Kf6 {[%clk 0:00:23]} 39. Re8 {[%clk 0:00:16]}  Rxa3 {[%clk 0:00:24]} 40. Rxe4 {[%clk 0:00:16]}  Ra2 {[%clk 0:00:23]} 41. Kg2 {[%clk 0:00:16]}  a4 {[%clk 0:00:23]} 42. Rb4 {[%clk 0:00:14]}  a3 {[%clk 0:00:23]} 43. Ra4 {[%clk 0:00:14]}  Ke5 {[%clk 0:00:22]} 44. g4 {[%clk 0:00:14]}  Kd5 {[%clk 0:00:22]} 45. h4 {[%clk 0:00:12]}  Kc5 {[%clk 0:00:22]} 46. h5 {[%clk 0:00:12]}  Ra1 {[%clk 0:00:20]} 47. Ra7 {[%clk 0:00:11]}  a2 {[%clk 0:00:20]} 48. f4 {[%clk 0:00:11]}  Kb4 {[%clk 0:00:20]} 49. g5 {[%clk 0:00:11]}  Kb3 {[%clk 0:00:18]} 50. f5 {[%clk 0:00:11]}  hxg5 {[%clk 0:00:17]} 51. f6 {[%clk 0:00:10]}  gxf6 {[%clk 0:00:14]} 52. h6 {[%clk 0:00:10]}  Re1 {[%clk 0:00:10]} 53. Rb7+ {[%clk 0:00:09]}  Kc2 {[%clk 0:00:10]} 54. Rc7+ {[%clk 0:00:09]}  Kd3 {[%clk 0:00:08]} 55. Rd7+ {[%clk 0:00:09]}  Kc4 {[%clk 0:00:08]} 56. Ra7 {[%clk 0:00:09]}  a1=Q {[%clk 0:00:08]} 57. Rc7+ {[%clk 0:00:09]}  Kd5 {[%clk 0:00:08]} 58. h7 {[%clk 0:00:09]}  Rg1+ {[%clk 0:00:07]} 59. Kh3 {[%clk 0:00:09]}  Rh1+ {[%clk 0:00:07]} 60. Kg4 {[%clk 0:00:09]}  Qd4+ {[%clk 0:00:06]} 61. Kf5 {[%clk 0:00:09]}  Qf4+ {[%clk 0:00:06]} 62. Kg6 {[%clk 0:00:10]}  Qxc7 {[%clk 0:00:07]} 63. h8=Q {[%clk 0:00:10]}  Rxh8 {[%clk 0:00:07]} 64. Kxf6 {[%clk 0:00:10]}  Qe5+ {[%clk 0:00:07]} 65. Kg6 {[%clk 0:00:11]}  Rg8+ {[%clk 0:00:08]} 66. Kh5 {[%clk 0:00:11]}  g4+ {[%clk 0:00:07]} 67. Kh4 {[%clk 0:00:11]}  Qh2# {[%clk 0:00:07]} 0-1


[Site "https://www.chess.com"]

[Event "Titled Tuesday Blitz January 31 Early 2023"]
[White "Bas Mas, Jose Joaquin"]
[Black "Lobachev, Yury"]
[WhiteFideId "22219064"]
[BlackFideId "24138177"]
[WhiteElo "2197"]
[BlackElo "2345"]
[Result "0-1"]
[Round "05"]
[TimeControl "180+2"]
[Date "2023.01.31"]
[WhiteClock "0:02:09"]
[BlackClock "0:01:26"]

1. e4 {[%clk 0:03:00]}  c5 {[%clk 0:02:25]} 2. Nc3 {[%clk 0:03:00]}  e6 {[%clk 0:02:25]} 3. f4 {[%clk 0:02:55]}  Nc6 {[%clk 0:02:25]} 4. Nf3 {[%clk 0:02:55]}  g6 {[%clk 0:02:24]} 5. Bb5 {[%clk 0:02:51]}  Qc7 {[%clk 0:02:21]} 6. Bxc6 {[%clk 0:02:50]}  Qxc6 {[%clk 0:02:21]} 7. d3 {[%clk 0:02:49]}  Bg7 {[%clk 0:02:20]} 8. O-O {[%clk 0:02:49]}  Ne7 {[%clk 0:02:20]} 9. Qe1 {[%clk 0:02:48]}  f5 {[%clk 0:02:07]} 10. exf5 {[%clk 0:02:30]}  Nxf5 {[%clk 0:02:04]} 11. Ne5 {[%clk 0:02:23]}  Bxe5 {[%clk 0:01:51]} 12. Qxe5 {[%clk 0:02:17]}  O-O {[%clk 0:01:51]} 13. Ne4 {[%clk 0:02:15]}  d6 {[%clk 0:01:36]} 14. Qc3 {[%clk 0:02:11]}  Nd4 {[%clk 0:01:27]} 15. Be3 {[%clk 0:02:09]}  Ne2+ {[%clk 0:01:26]} 0-1


[Site "https://www.chess.com"]

[Event "Titled Tuesday Blitz January 31 Early 2023"]
[White "Ciuffoletti, Paolo"]
[Black "Sowul, Bartosz"]
[WhiteFideId "807630"]
[BlackFideId "1137590"]
[WhiteElo "2106"]
[BlackElo "2269"]
[Result "0-1"]
[Round "05"]
[TimeControl "180+2"]
[Date "2023.01.31"]
[WhiteClock "0:00:03"]
[BlackClock "0:00:18"]

1. e4 {[%clk 0:03:00]}  c5 {[%clk 0:02:59]} 2. d4 {[%clk 0:03:00]}  cxd4 {[%clk 0:03:00]} 3. c3 {[%clk 0:03:00]}  Nf6 {[%clk 0:02:57]} 4. e5 {[%clk 0:02:59]}  Nd5 {[%clk 0:02:58]} 5. Qxd4 {[%clk 0:02:59]}  e6 {[%clk 0:02:55]} 6. Bc4 {[%clk 0:02:59]}  Nc6 {[%clk 0:02:53]} 7. Qe4 {[%clk 0:02:59]}  Nb6 {[%clk 0:02:51]} 8. Bb3 {[%clk 0:02:56]}  d6 {[%clk 0:02:43]} 9. exd6 {[%clk 0:02:48]}  Bxd6 {[%clk 0:02:44]} 10. Nf3 {[%clk 0:02:47]}  O-O {[%clk 0:02:39]} 11. Ng5 {[%clk 0:02:43]}  g6 {[%clk 0:02:33]} 12. Qh4 {[%clk 0:02:42]}  h5 {[%clk 0:02:22]} 13. O-O {[%clk 0:02:41]}  Kg7 {[%clk 0:02:14]} 14. Rd1 {[%clk 0:02:31]}  Qc7 {[%clk 0:01:59]} 15. Nd2 {[%clk 0:01:59]}  Ne7 {[%clk 0:01:55]} 16. Nge4 {[%clk 0:01:44]}  Be5 {[%clk 0:01:49]} 17. Nf3 {[%clk 0:01:27]}  Nf5 {[%clk 0:01:49]} 18. Qh3 {[%clk 0:01:27]}  Bf4 {[%clk 0:01:39]} 19. Ng3 {[%clk 0:00:56]}  Bxc1 {[%clk 0:01:28]} 20. Raxc1 {[%clk 0:00:50]}  e5 {[%clk 0:01:16]} 21. Nxf5+ {[%clk 0:00:50]}  Bxf5 {[%clk 0:01:16]} 22. Qg3 {[%clk 0:00:50]}  Rfe8 {[%clk 0:01:01]} 23. Nh4 {[%clk 0:00:42]}  Bg4 {[%clk 0:00:58]} 24. f3 {[%clk 0:00:40]}  Be6 {[%clk 0:00:51]} 25. Bxe6 {[%clk 0:00:30]}  Rxe6 {[%clk 0:00:51]} 26. Nf5+ {[%clk 0:00:29]}  Kh7 {[%clk 0:00:52]} 27. Ne3 {[%clk 0:00:28]}  Rd8 {[%clk 0:00:45]} 28. Rxd8 {[%clk 0:00:26]}  Qxd8 {[%clk 0:00:45]} 29. Rd1 {[%clk 0:00:26]}  Rd6 {[%clk 0:00:41]} 30. Rxd6 {[%clk 0:00:26]}  Qxd6 {[%clk 0:00:42]} 31. h4 {[%clk 0:00:26]}  f6 {[%clk 0:00:41]} 32. Kh2 {[%clk 0:00:21]}  Qd2 {[%clk 0:00:36]} 33. Nf1 {[%clk 0:00:17]}  Qxb2 {[%clk 0:00:35]} 34. Qe1 {[%clk 0:00:16]}  Qxa2 {[%clk 0:00:34]} 35. Qe4 {[%clk 0:00:16]}  Qd5 {[%clk 0:00:34]} 36. Qb4 {[%clk 0:00:16]}  Qd7 {[%clk 0:00:33]} 37. Ne3 {[%clk 0:00:14]}  Qc7 {[%clk 0:00:31]} 38. c4 {[%clk 0:00:14]}  e4+ {[%clk 0:00:31]} 39. Kh1 {[%clk 0:00:10]}  exf3 {[%clk 0:00:31]} 40. gxf3 {[%clk 0:00:10]}  Nc8 {[%clk 0:00:26]} 41. c5 {[%clk 0:00:09]}  b6 {[%clk 0:00:24]} 42. cxb6 {[%clk 0:00:08]}  axb6 {[%clk 0:00:25]} 43. Qe4 {[%clk 0:00:08]}  Qg3 {[%clk 0:00:21]} 44. Qb7+ {[%clk 0:00:07]}  Kh6 {[%clk 0:00:20]} 45. Qxc8 {[%clk 0:00:06]}  Qe1+ {[%clk 0:00:20]} 46. Kg2 {[%clk 0:00:05]}  Qe2+ {[%clk 0:00:19]} 47. Kg3 {[%clk 0:00:04]}  Qe1+ {[%clk 0:00:18]} 48. Kg2 {[%clk 0:00:04]}  Qd2+ {[%clk 0:00:18]} 49. Kg3 {[%clk 0:00:04]}  Qd6+ {[%clk 0:00:18]} 50. Kg2 {[%clk 0:00:04]}  Qd2+ {[%clk 0:00:18]} 51. Kg3 {[%clk 0:00:03]}  Qd6+ {[%clk 0:00:18]} 52. Kg2 {[%clk 0:00:04]}  Kh7 {[%clk 0:00:18]} 53. Qc7+ {[%clk 0:00:03]}  Qxc7 {[%clk 0:00:18]} 0-1


[Site "https://www.chess.com"]

[Event "Titled Tuesday Blitz January 31 Early 2023"]
[White "ritanovikova"]
[Black "Wahedi, Ahmad Siar"]
[BlackFideId "4651260"]
[WhiteElo "2206"]
[BlackElo "2274"]
[Result "0-1"]
[Round "05"]
[TimeControl "180+2"]
[Date "2023.01.31"]
[WhiteClock "0:01:21"]
[BlackClock "0:01:48"]

1. e4 {[%clk 0:03:00]}  e6 {[%clk 0:02:59]} 2. d4 {[%clk 0:03:00]}  d5 {[%clk 0:02:59]} 3. exd5 {[%clk 0:03:01]}  exd5 {[%clk 0:02:59]} 4. Bd3 {[%clk 0:03:01]}  Nf6 {[%clk 0:02:58]} 5. Nf3 {[%clk 0:03:01]}  Bd6 {[%clk 0:02:57]} 6. h3 {[%clk 0:03:00]}  h6 {[%clk 0:02:56]} 7. O-O {[%clk 0:03:01]}  O-O {[%clk 0:02:56]} 8. Be3 {[%clk 0:02:59]}  Re8 {[%clk 0:02:53]} 9. Re1 {[%clk 0:02:58]}  Nbd7 {[%clk 0:02:52]} 10. Nbd2 {[%clk 0:02:58]}  c6 {[%clk 0:02:52]} 11. c3 {[%clk 0:02:58]}  Nf8 {[%clk 0:02:51]} 12. Nf1 {[%clk 0:02:57]}  Qc7 {[%clk 0:02:49]} 13. Qd2 {[%clk 0:02:56]}  Bd7 {[%clk 0:02:48]} 14. Re2 {[%clk 0:02:52]}  Re7 {[%clk 0:02:48]} 15. Rae1 {[%clk 0:02:51]}  Rae8 {[%clk 0:02:49]} 16. N1h2 {[%clk 0:02:37]}  Ne4 {[%clk 0:02:47]} 17. Qc2 {[%clk 0:02:34]}  f5 {[%clk 0:02:38]} 18. Nf1 {[%clk 0:02:29]}  Bc8 {[%clk 0:02:20]} 19. N3d2 {[%clk 0:02:28]}  f4 {[%clk 0:02:12]} 20. Bxf4 {[%clk 0:02:15]}  Bxf4 {[%clk 0:02:11]} 21. Nxe4 {[%clk 0:02:06]}  dxe4 {[%clk 0:02:10]} 22. Bxe4 {[%clk 0:02:04]}  Be6 {[%clk 0:01:56]} 23. Nd2 {[%clk 0:01:48]}  Bf7 {[%clk 0:01:52]} 24. Nc4 {[%clk 0:01:31]}  Bxc4 {[%clk 0:01:50]} 25. b3 {[%clk 0:01:21]}  Bxe2 {[%clk 0:01:48]} 0-1


[Site "https://www.chess.com"]

[Event "Titled Tuesday Blitz January 31 Early 2023"]
[White "Forgacs, Attila Jr."]
[Black "Ardila, Oscar Humberto"]
[WhiteFideId "773654"]
[BlackFideId "4404742"]
[WhiteElo "2264"]
[BlackElo "1982"]
[Result "1-0"]
[Round "05"]
[TimeControl "180+2"]
[Date "2023.01.31"]
[WhiteClock "0:00:30"]
[BlackClock "0:00:09"]

1. e4 {[%clk 0:03:00]}  e5 {[%clk 0:01:56]} 2. Nf3 {[%clk 0:03:00]}  Nf6 {[%clk 0:01:55]} 3. Nxe5 {[%clk 0:02:56]}  d6 {[%clk 0:01:55]} 4. Nf3 {[%clk 0:02:56]}  Nxe4 {[%clk 0:01:56]} 5. Bd3 {[%clk 0:02:57]}  Nf6 {[%clk 0:01:55]} 6. c3 {[%clk 0:02:57]}  Be7 {[%clk 0:01:56]} 7. Bc2 {[%clk 0:02:57]}  O-O {[%clk 0:01:56]} 8. O-O {[%clk 0:02:58]}  Bg4 {[%clk 0:01:56]} 9. d4 {[%clk 0:02:58]}  Nbd7 {[%clk 0:01:55]} 10. h3 {[%clk 0:02:58]}  Bh5 {[%clk 0:01:55]} 11. Qd3 {[%clk 0:02:55]}  Bg6 {[%clk 0:01:54]} 12. Qd1 {[%clk 0:02:52]}  Bxc2 {[%clk 0:01:54]} 13. Qxc2 {[%clk 0:02:53]}  Re8 {[%clk 0:01:54]} 14. Bf4 {[%clk 0:02:52]}  Bf8 {[%clk 0:01:54]} 15. Nbd2 {[%clk 0:02:51]}  g6 {[%clk 0:01:54]} 16. Rfe1 {[%clk 0:02:47]}  Bg7 {[%clk 0:01:54]} 17. Ne4 {[%clk 0:02:37]}  Nxe4 {[%clk 0:01:52]} 18. Rxe4 {[%clk 0:02:38]}  Nf6 {[%clk 0:01:51]} 19. Rxe8+ {[%clk 0:02:37]}  Qxe8 {[%clk 0:01:51]} 20. Re1 {[%clk 0:02:36]}  Qd7 {[%clk 0:01:51]} 21. Qb3 {[%clk 0:02:25]}  b6 {[%clk 0:01:50]} 22. Bg5 {[%clk 0:02:08]}  Re8 {[%clk 0:01:45]} 23. Rxe8+ {[%clk 0:02:01]}  Nxe8 {[%clk 0:01:44]} 24. Qc4 {[%clk 0:01:57]}  d5 {[%clk 0:01:37]} 25. Qa6 {[%clk 0:01:53]}  c6 {[%clk 0:01:34]} 26. Bf4 {[%clk 0:01:49]}  f6 {[%clk 0:00:44]} 27. Bb8 {[%clk 0:01:47]}  Bf8 {[%clk 0:00:42]} 28. Qxa7 {[%clk 0:01:36]}  Qxa7 {[%clk 0:00:42]} 29. Bxa7 {[%clk 0:01:36]}  b5 {[%clk 0:00:42]} 30. Bb8 {[%clk 0:01:33]}  Kf7 {[%clk 0:00:42]} 31. b3 {[%clk 0:01:31]}  Ke6 {[%clk 0:00:42]} 32. a4 {[%clk 0:01:29]}  bxa4 {[%clk 0:00:35]} 33. bxa4 {[%clk 0:01:30]}  Kd7 {[%clk 0:00:36]} 34. Kf1 {[%clk 0:01:29]}  Kc8 {[%clk 0:00:35]} 35. Bf4 {[%clk 0:01:30]}  Ba3 {[%clk 0:00:34]} 36. Ke2 {[%clk 0:01:29]}  Bb2 {[%clk 0:00:33]} 37. Kd3 {[%clk 0:01:29]}  Kb7 {[%clk 0:00:34]} 38. Nd2 {[%clk 0:01:27]}  Ka6 {[%clk 0:00:32]} 39. Nb3 {[%clk 0:01:27]}  Ba3 {[%clk 0:00:27]} 40. c4 {[%clk 0:01:23]}  Bb4 {[%clk 0:00:23]} 41. cxd5 {[%clk 0:01:12]}  cxd5 {[%clk 0:00:23]} 42. f3 {[%clk 0:01:09]}  Kb6 {[%clk 0:00:23]} 43. Bd2 {[%clk 0:01:06]}  Bxd2 {[%clk 0:00:18]} 44. Kxd2 {[%clk 0:01:07]}  Nd6 {[%clk 0:00:18]} 45. Kd3 {[%clk 0:01:03]}  Nf5 {[%clk 0:00:18]} 46. Nc5 {[%clk 0:00:57]}  Nh4 {[%clk 0:00:18]} 47. Nd7+ {[%clk 0:00:57]}  Ka5 {[%clk 0:00:17]} 48. Nxf6 {[%clk 0:00:58]}  Nxg2 {[%clk 0:00:17]} 49. Nxd5 {[%clk 0:00:55]}  Kxa4 {[%clk 0:00:17]} 50. Kc4 {[%clk 0:00:53]}  Ka5 {[%clk 0:00:17]} 51. Kc5 {[%clk 0:00:51]}  Ka6 {[%clk 0:00:17]} 52. Kc6 {[%clk 0:00:50]}  Ka7 {[%clk 0:00:17]} 53. Ne7 {[%clk 0:00:50]}  Nf4 {[%clk 0:00:16]} 54. d5 {[%clk 0:00:50]}  Kb8 {[%clk 0:00:14]} 55. d6 {[%clk 0:00:49]}  Ne6 {[%clk 0:00:15]} 56. d7 {[%clk 0:00:48]}  Nd8+ {[%clk 0:00:15]} 57. Kd6 {[%clk 0:00:46]}  Nf7+ {[%clk 0:00:15]} 58. Ke6 {[%clk 0:00:46]}  Nd8+ {[%clk 0:00:15]} 59. Kd6 {[%clk 0:00:42]}  Nf7+ {[%clk 0:00:15]} 60. Kc6 {[%clk 0:00:42]}  Nd8+ {[%clk 0:00:13]} 61. Kb6 {[%clk 0:00:42]}  Ne6 {[%clk 0:00:10]} 62. Nc6+ {[%clk 0:00:40]}  Ka8 {[%clk 0:00:09]} 63. d8=Q+ {[%clk 0:00:40]}  Nxd8 {[%clk 0:00:09]} 64. Nxd8 {[%clk 0:00:41]}  Kb8 {[%clk 0:00:08]} 65. Ne6 {[%clk 0:00:40]}  Kc8 {[%clk 0:00:09]} 66. Nf8 {[%clk 0:00:40]}  h6 {[%clk 0:00:09]} 67. Nxg6 {[%clk 0:00:40]}  Kd7 {[%clk 0:00:09]} 68. Kc5 {[%clk 0:00:34]}  Ke6 {[%clk 0:00:10]} 69. Nh4 {[%clk 0:00:31]}  Kf6 {[%clk 0:00:10]} 70. Kd4 {[%clk 0:00:30]}  Kg5 {[%clk 0:00:11]} 71. Ng2 {[%clk 0:00:30]}  h5 {[%clk 0:00:09]} 72. Ke5 {[%clk 0:00:30]} 1-0


[Site "https://www.chess.com"]

[Event "Titled Tuesday Blitz January 31 Early 2023"]
[White "Babikov, Ivan"]
[Black "kiwibobo"]
[WhiteFideId "4161106"]
[WhiteElo "2239"]
[BlackElo "2040"]
[Result "1-0"]
[Round "05"]
[TimeControl "180+2"]
[Date "2023.01.31"]
[WhiteClock "0:00:56"]
[BlackClock "0:00:16"]

1. d4 {[%clk 0:03:00]}  Nf6 {[%clk 0:02:59]} 2. Bg5 {[%clk 0:03:00]}  Ne4 {[%clk 0:02:59]} 3. Bf4 {[%clk 0:03:00]}  c5 {[%clk 0:02:59]} 4. e3 {[%clk 0:03:00]}  d5 {[%clk 0:02:48]} 5. Nf3 {[%clk 0:02:59]}  Nc6 {[%clk 0:02:47]} 6. c3 {[%clk 0:02:59]}  Qb6 {[%clk 0:02:41]} 7. Qc1 {[%clk 0:02:58]}  Bf5 {[%clk 0:02:37]} 8. Nbd2 {[%clk 0:02:57]}  h6 {[%clk 0:02:34]} 9. Be2 {[%clk 0:02:56]}  e6 {[%clk 0:02:34]} 10. O-O {[%clk 0:02:55]}  Be7 {[%clk 0:02:34]} 11. Nxe4 {[%clk 0:02:56]}  Bxe4 {[%clk 0:02:32]} 12. Qd2 {[%clk 0:02:56]}  O-O {[%clk 0:02:31]} 13. Ne5 {[%clk 0:02:53]}  Nxe5 {[%clk 0:02:19]} 14. Bxe5 {[%clk 0:02:53]}  Bd6 {[%clk 0:02:11]} 15. Bg3 {[%clk 0:02:51]}  Bxg3 {[%clk 0:02:01]} 16. hxg3 {[%clk 0:02:52]}  Qc7 {[%clk 0:01:57]} 17. Rfd1 {[%clk 0:02:47]}  Rfd8 {[%clk 0:01:52]} 18. Rac1 {[%clk 0:02:38]}  e5 {[%clk 0:01:42]} 19. dxe5 {[%clk 0:02:30]}  Qxe5 {[%clk 0:01:41]} 20. Bd3 {[%clk 0:02:31]}  Rac8 {[%clk 0:01:18]} 21. Qe2 {[%clk 0:02:14]}  Bxd3 {[%clk 0:01:12]} 22. Qxd3 {[%clk 0:02:14]}  Rc6 {[%clk 0:00:57]} 23. Rd2 {[%clk 0:02:12]}  Rcd6 {[%clk 0:00:56]} 24. Rcd1 {[%clk 0:02:12]}  d4 {[%clk 0:00:50]} 25. cxd4 {[%clk 0:01:59]}  cxd4 {[%clk 0:00:49]} 26. exd4 {[%clk 0:01:52]}  Rxd4 {[%clk 0:00:47]} 27. Qxd4 {[%clk 0:01:53]}  Rxd4 {[%clk 0:00:45]} 28. Rxd4 {[%clk 0:01:53]}  Qb5 {[%clk 0:00:44]} 29. R1d2 {[%clk 0:01:52]}  Kh7 {[%clk 0:00:43]} 30. Rd7 {[%clk 0:01:52]}  Qc4 {[%clk 0:00:42]} 31. R7d4 {[%clk 0:01:44]}  Qxa2 {[%clk 0:00:41]} 32. Rd7 {[%clk 0:01:40]}  Qc4 {[%clk 0:00:40]} 33. Kh2 {[%clk 0:01:35]}  Qb4 {[%clk 0:00:36]} 34. Re2 {[%clk 0:01:31]}  Qb5 {[%clk 0:00:33]} 35. Ree7 {[%clk 0:01:30]}  Qxb2 {[%clk 0:00:30]} 36. Rxb7 {[%clk 0:01:29]}  Qxf2 {[%clk 0:00:29]} 37. Rxf7 {[%clk 0:01:28]}  Qd4 {[%clk 0:00:28]} 38. Rxa7 {[%clk 0:01:27]}  Qc3 {[%clk 0:00:28]} 39. Rxg7+ {[%clk 0:01:19]}  Qxg7 {[%clk 0:00:28]} 40. Rxg7+ {[%clk 0:01:20]}  Kxg7 {[%clk 0:00:28]} 41. Kh3 {[%clk 0:01:20]}  Kh7 {[%clk 0:00:25]} 42. Kh4 {[%clk 0:01:20]}  Kg6 {[%clk 0:00:21]} 43. Kg4 {[%clk 0:01:09]}  Kf6 {[%clk 0:00:18]} 44. Kh5 {[%clk 0:01:06]}  Kg7 {[%clk 0:00:18]} 45. g4 {[%clk 0:00:56]}  Kh7 {[%clk 0:00:18]} 46. g5 {[%clk 0:00:56]}  hxg5 {[%clk 0:00:16]} 47. Kxg5 {[%clk 0:00:57]}  Kg8 {[%clk 0:00:16]} 48. Kg6 {[%clk 0:00:56]} 1-0


[Site "https://www.chess.com"]

[Event "Titled Tuesday Blitz January 31 Early 2023"]
[White "Mushini Ajay"]
[Black "Adithya A Chullikkad"]
[WhiteFideId "35066188"]
[BlackFideId "45078734"]
[WhiteElo "2310"]
[BlackElo "2259"]
[Result "1-0"]
[Round "05"]
[TimeControl "180+2"]
[Date "2023.01.31"]
[WhiteClock "0:00:34"]
[BlackClock "0:00:10"]

1. e4 {[%clk 0:02:37]}  c5 {[%clk 0:02:38]} 2. Nf3 {[%clk 0:02:34]}  d6 {[%clk 0:02:33]} 3. Bb5+ {[%clk 0:02:32]}  Nd7 {[%clk 0:02:27]} 4. d4 {[%clk 0:02:32]}  cxd4 {[%clk 0:02:27]} 5. Qxd4 {[%clk 0:02:32]}  a6 {[%clk 0:02:19]} 6. Bxd7+ {[%clk 0:02:30]}  Bxd7 {[%clk 0:02:15]} 7. O-O {[%clk 0:02:30]}  Nf6 {[%clk 0:02:13]} 8. c4 {[%clk 0:02:20]}  e6 {[%clk 0:01:54]} 9. Nc3 {[%clk 0:02:19]}  Be7 {[%clk 0:01:53]} 10. a4 {[%clk 0:02:16]}  O-O {[%clk 0:01:53]} 11. b3 {[%clk 0:02:16]}  Bc6 {[%clk 0:01:47]} 12. Ba3 {[%clk 0:02:16]}  d5 {[%clk 0:01:38]} 13. Bxe7 {[%clk 0:02:15]}  Qxe7 {[%clk 0:01:38]} 14. e5 {[%clk 0:02:09]}  Ne4 {[%clk 0:01:35]} 15. Nxe4 {[%clk 0:02:02]}  dxe4 {[%clk 0:01:34]} 16. Nd2 {[%clk 0:02:02]}  Rfd8 {[%clk 0:01:33]} 17. Qe3 {[%clk 0:02:02]}  Rd3 {[%clk 0:01:32]} 18. Qe2 {[%clk 0:02:03]}  Qh4 {[%clk 0:01:28]} 19. Rfe1 {[%clk 0:01:51]}  Rad8 {[%clk 0:01:23]} 20. Nxe4 {[%clk 0:01:51]}  Bxe4 {[%clk 0:01:15]} 21. Qxe4 {[%clk 0:01:52]}  Qxe4 {[%clk 0:01:15]} 22. Rxe4 {[%clk 0:01:53]}  Rxb3 {[%clk 0:01:16]} 23. Re2 {[%clk 0:01:34]}  g6 {[%clk 0:01:09]} 24. g3 {[%clk 0:01:34]}  Rd4 {[%clk 0:01:09]} 25. Rc2 {[%clk 0:01:23]}  Rb4 {[%clk 0:00:53]} 26. c5 {[%clk 0:01:17]}  Rxa4 {[%clk 0:00:54]} 27. Rxa4 {[%clk 0:01:15]}  Rxa4 {[%clk 0:00:54]} 28. c6 {[%clk 0:01:16]}  bxc6 {[%clk 0:00:53]} 29. Rxc6 {[%clk 0:01:17]}  a5 {[%clk 0:00:52]} 30. Rc7 {[%clk 0:01:16]}  Rd4 {[%clk 0:00:47]} 31. Ra7 {[%clk 0:01:11]}  Rd5 {[%clk 0:00:47]} 32. f4 {[%clk 0:01:11]}  g5 {[%clk 0:00:46]} 33. Kf2 {[%clk 0:01:07]}  g4 {[%clk 0:00:46]} 34. Ke3 {[%clk 0:01:03]}  Kg7 {[%clk 0:00:46]} 35. Ke4 {[%clk 0:01:02]}  Kg6 {[%clk 0:00:43]} 36. f5+ {[%clk 0:01:02]}  Kg5 {[%clk 0:00:34]} 37. Rxf7 {[%clk 0:01:01]}  Rd8 {[%clk 0:00:19]} 38. fxe6 {[%clk 0:00:56]}  Re8 {[%clk 0:00:20]} 39. Kd5 {[%clk 0:00:55]}  a4 {[%clk 0:00:19]} 40. Ra7 {[%clk 0:00:49]}  Kf5 {[%clk 0:00:17]} 41. e7 {[%clk 0:00:46]}  a3 {[%clk 0:00:16]} 42. Kd6 {[%clk 0:00:41]}  Rg8 {[%clk 0:00:10]} 43. Rxa3 {[%clk 0:00:34]} 1-0


[Site "https://www.chess.com"]

[Event "Titled Tuesday Blitz January 31 Early 2023"]
[White "Mkrtchian, Lilit"]
[Black "Szente Varga, Fruzsina"]
[WhiteFideId "13300601"]
[BlackFideId "712264"]
[WhiteElo "2389"]
[BlackElo "2075"]
[Result "1-0"]
[Round "05"]
[TimeControl "180+2"]
[Date "2023.01.31"]
[WhiteClock "0:02:12"]
[BlackClock "0:00:30"]

1. Nf3 {[%clk 0:03:00]}  Nf6 {[%clk 0:02:59]} 2. g3 {[%clk 0:02:57]}  g6 {[%clk 0:02:59]} 3. Bg2 {[%clk 0:02:57]}  Bg7 {[%clk 0:03:00]} 4. O-O {[%clk 0:02:55]}  d5 {[%clk 0:03:00]} 5. c4 {[%clk 0:02:52]}  c6 {[%clk 0:03:01]} 6. d4 {[%clk 0:02:51]}  O-O {[%clk 0:03:01]} 7. Qb3 {[%clk 0:02:49]}  Ne4 {[%clk 0:02:55]} 8. Nc3 {[%clk 0:02:43]}  e6 {[%clk 0:02:36]} 9. Rd1 {[%clk 0:02:34]}  Nd7 {[%clk 0:02:27]} 10. Nxe4 {[%clk 0:02:26]}  dxe4 {[%clk 0:02:28]} 11. Ng5 {[%clk 0:02:26]}  h5 {[%clk 0:01:29]} 12. Nxe4 {[%clk 0:02:16]}  Nf6 {[%clk 0:01:24]} 13. Bg5 {[%clk 0:02:14]}  Bd7 {[%clk 0:00:30]} 14. Qf3 {[%clk 0:02:12]} 1-0


[Site "https://www.chess.com"]